[Event "Late-Titled-Tuesday-Blitz-March-12-2024"]
[Site "Chess.com"]
[Date "2024.03.12"]
[Round "11"]
[White "Walter_White_Poland"]
[Black "tarno17"]
[Result "1-0"]
[WhiteElo "2351"]
[BlackElo "2209"]
[TimeControl "180+1"]
[EndTime "16:03:53 PDT"]
[Termination "Walter_White_Poland won on time"]

1. d4 {[%clk 0:02:54.6]} 1... d5 {[%clk 0:03:00]} 2. Bf4 {[%clk 0:02:54.4]} 2...
Nf6 {[%clk 0:02:59.7]} 3. e3 {[%clk 0:02:54.3]} 3... e6 {[%clk 0:03:00.3]} 4.
Bd3 {[%clk 0:02:54.2]} 4... Be7 {[%clk 0:03:00.8]} 5. Nf3 {[%clk 0:02:53.2]}
5... O-O {[%clk 0:03:01.4]} 6. h3 {[%clk 0:02:53.1]} 6... b6 {[%clk 0:03:01.8]}
7. O-O {[%clk 0:02:52.2]} 7... c5 {[%clk 0:03:01.9]} 8. c3 {[%clk 0:02:51.8]}
8... Bb7 {[%clk 0:03:02.2]} 9. Nbd2 {[%clk 0:02:51.5]} 9... Nbd7 {[%clk
0:03:01.7]} 10. Ne5 {[%clk 0:02:49.1]} 10... Ne4 {[%clk 0:02:48.4]} 11. Qc2
{[%clk 0:02:28.7]} 11... f5 {[%clk 0:02:43]} 12. f3 {[%clk 0:02:24.6]} 12...
Nef6 {[%clk 0:02:36.8]} 13. Rae1 {[%clk 0:02:17.8]} 13... Rc8 {[%clk 0:02:34.4]}
14. Bh2 {[%clk 0:02:13.6]} 14... Nh5 {[%clk 0:02:25.9]} 15. g4 {[%clk
0:02:08.5]} 15... Bh4 {[%clk 0:01:52.1]} 16. gxh5 {[%clk 0:01:59.7]} 16... Qg5+
{[%clk 0:01:49.7]} 17. Kh1 {[%clk 0:01:55]} 17... Nf6 {[%clk 0:01:19.4]} 18. Rg1
{[%clk 0:01:52.9]} 18... Qxh5 {[%clk 0:01:17.7]} 19. Ref1 {[%clk 0:01:36.6]}
19... Bg5 {[%clk 0:00:56.7]} 20. f4 {[%clk 0:01:13.5]} 20... Bh4 {[%clk
0:00:51.9]} 21. Ndf3 {[%clk 0:01:08.2]} 21... Ne4 {[%clk 0:00:42.8]} 22. Bxe4
{[%clk 0:01:05.9]} 22... dxe4 {[%clk 0:00:33]} 23. Ng5 {[%clk 0:01:01]} 23...
Ba6 {[%clk 0:00:27.1]} 24. Rd1 {[%clk 0:00:42.5]} 24... Bxg5 {[%clk 0:00:23]}
25. Rxg5 {[%clk 0:00:42.2]} 25... Qxh3 {[%clk 0:00:23.4]} 26. Rdg1 {[%clk
0:00:30.4]} 26... Rc7 {[%clk 0:00:19.9]} 27. Qb3 {[%clk 0:00:22.9]} 27... Rf6
{[%clk 0:00:16.8]} 28. dxc5 {[%clk 0:00:16.2]} 28... Rh6 {[%clk 0:00:16]} 29.
R1g2 {[%clk 0:00:13.8]} 29... Bf1 {[%clk 0:00:09.9]} 30. cxb6 {[%clk 0:00:11.6]}
30... Bxg2+ {[%clk 0:00:09.6]} 31. Rxg2 {[%clk 0:00:11.5]} 31... axb6 {[%clk
0:00:03.3]} 32. Qxb6 {[%clk 0:00:11.4]} 32... Rc8 {[%clk 0:00:01.7]} 33. Qb7
{[%clk 0:00:10.1]} 1-0

[Event "Late-Titled-Tuesday-Blitz-March-12-2024"]
[Site "Chess.com"]
[Date "2024.03.12"]
[Round "11"]
[White "ploxoi"]
[Black "PapaieDudu"]
[Result "0-1"]
[WhiteElo "2412"]
[BlackElo "2431"]
[TimeControl "180+1"]
[EndTime "16:03:56 PDT"]
[Termination "PapaieDudu won by checkmate"]

1. d4 {[%clk 0:03:00.9]} 1... d5 {[%clk 0:02:57.2]} 2. Nf3 {[%clk 0:03:00.8]}
2... Nf6 {[%clk 0:02:56.9]} 3. c4 {[%clk 0:02:59.5]} 3... e6 {[%clk 0:02:57.8]}
4. g3 {[%clk 0:02:58.8]} 4... dxc4 {[%clk 0:02:57.8]} 5. Bg2 {[%clk 0:02:58.7]}
5... Bb4+ {[%clk 0:02:57.8]} 6. Bd2 {[%clk 0:02:58.4]} 6... Be7 {[%clk 0:02:58]}
7. O-O {[%clk 0:02:58]} 7... O-O {[%clk 0:02:57.6]} 8. Qa4 {[%clk 0:02:55.4]}
8... a6 {[%clk 0:02:56.4]} 9. Qxc4 {[%clk 0:02:56]} 9... b5 {[%clk 0:02:56.8]}
10. Qc2 {[%clk 0:02:56.6]} 10... Bb7 {[%clk 0:02:57.2]} 11. Bf4 {[%clk
0:02:56.4]} 11... Nc6 {[%clk 0:02:55]} 12. Rd1 {[%clk 0:02:51.9]} 12... Rc8
{[%clk 0:02:52.8]} 13. a3 {[%clk 0:02:52]} 13... b4 {[%clk 0:02:49.5]} 14. Ne5
{[%clk 0:02:41.8]} 14... b3 {[%clk 0:02:25.8]} 15. Qxb3 {[%clk 0:02:12.3]} 15...
Na5 {[%clk 0:02:25.8]} 16. Qc3 {[%clk 0:02:08.6]} 16... Bxg2 {[%clk 0:02:23.5]}
17. Kxg2 {[%clk 0:02:08.2]} 17... Qd5+ {[%clk 0:02:15.2]} 18. Qf3 {[%clk
0:02:07.4]} 18... Nb3 {[%clk 0:01:51.7]} 19. Ra2 {[%clk 0:01:57.2]} 19... c5
{[%clk 0:01:34.8]} 20. Nc3 {[%clk 0:01:45.4]} 20... Qxf3+ {[%clk 0:01:34.7]} 21.
Kxf3 {[%clk 0:01:44.5]} 21... cxd4 {[%clk 0:01:34]} 22. Ne4 {[%clk 0:01:39.6]}
22... Nxe4 {[%clk 0:01:13.3]} 23. Kxe4 {[%clk 0:01:40.5]} 23... g5 {[%clk
0:01:10.6]} 24. Bd2 {[%clk 0:01:36.7]} 24... f5+ {[%clk 0:00:59.4]} 25. Kf3
{[%clk 0:01:36.3]} 25... Bd6 {[%clk 0:00:53.7]} 26. Nd3 {[%clk 0:01:22.8]} 26...
e5 {[%clk 0:00:54.1]} 27. Kg2 {[%clk 0:01:18.8]} 27... e4 {[%clk 0:00:52.3]} 28.
Nb4 {[%clk 0:01:18.4]} 28... a5 {[%clk 0:00:42.8]} 29. Nd5 {[%clk 0:01:18.5]}
29... Rc2 {[%clk 0:00:37.4]} 30. Bxg5 {[%clk 0:01:15]} 30... Rxe2 {[%clk
0:00:29.2]} 31. Nf6+ {[%clk 0:01:14.6]} 31... Kg7 {[%clk 0:00:25.3]} 32. Nd7
{[%clk 0:01:13.9]} 32... Rf7 {[%clk 0:00:20.7]} 33. Nb6 {[%clk 0:01:13.7]} 33...
e3 {[%clk 0:00:18.3]} 34. Rf1 {[%clk 0:01:12]} 34... f4 {[%clk 0:00:17.1]} 35.
gxf4 {[%clk 0:01:09.9]} 35... Bxf4 {[%clk 0:00:18]} 36. Bh4 {[%clk 0:01:08.5]}
36... Rf6 {[%clk 0:00:16]} 37. Bxf6+ {[%clk 0:01:07.2]} 37... Kxf6 {[%clk
0:00:15.6]} 38. Nd5+ {[%clk 0:01:07.8]} 38... Ke5 {[%clk 0:00:15.6]} 39. Nb6
{[%clk 0:00:57]} 39... Ke4 {[%clk 0:00:12]} 40. Nc4 {[%clk 0:00:55.8]} 40... d3
{[%clk 0:00:11.5]} 41. Kg1 {[%clk 0:00:53.1]} 41... exf2+ {[%clk 0:00:08]} 42.
Kg2 {[%clk 0:00:52]} 42... Be3 {[%clk 0:00:07.7]} 43. Nxe3 {[%clk 0:00:51]}
43... Kxe3 {[%clk 0:00:08]} 44. a4 {[%clk 0:00:51.1]} 44... Nd2 {[%clk
0:00:05.7]} 45. Ra3 {[%clk 0:00:43.6]} 45... Nxf1 {[%clk 0:00:04.8]} 46. Kxf1
{[%clk 0:00:44.5]} 46... Re1+ {[%clk 0:00:04]} 47. Kg2 {[%clk 0:00:44.3]} 47...
f1=Q+ {[%clk 0:00:04.7]} 48. Kg3 {[%clk 0:00:44.5]} 48... Qf4+ {[%clk 0:00:05]}
49. Kg2 {[%clk 0:00:44.8]} 49... Qf3# {[%clk 0:00:05.4]} 0-1

[Event "Late-Titled-Tuesday-Blitz-March-12-2024"]
[Site "Chess.com"]
[Date "2024.03.12"]
[Round "11"]
[White "ritanovikova"]
[Black "GilbertoHernandezAmura"]
[Result "1-0"]
[WhiteElo "2275"]
[BlackElo "2406"]
[TimeControl "180+1"]
[EndTime "16:04:05 PDT"]
[Termination "ritanovikova won by resignation"]

1. e4 {[%clk 0:02:57.8]} 1... e6 {[%clk 0:02:57.1]} 2. d4 {[%clk 0:02:57.8]}
2... d5 {[%clk 0:02:55.8]} 3. exd5 {[%clk 0:02:58.1]} 3... exd5 {[%clk
0:02:55.3]} 4. Bd3 {[%clk 0:02:59]} 4... Nf6 {[%clk 0:02:54.3]} 5. Nf3 {[%clk
0:02:59.5]} 5... c5 {[%clk 0:02:49.2]} 6. O-O {[%clk 0:02:58.7]} 6... c4 {[%clk
0:02:48.5]} 7. Be2 {[%clk 0:02:58.8]} 7... Nc6 {[%clk 0:02:41.8]} 8. b3 {[%clk
0:02:58.4]} 8... cxb3 {[%clk 0:02:36.8]} 9. axb3 {[%clk 0:02:58.4]} 9... Bd6
{[%clk 0:02:31.5]} 10. Ba3 {[%clk 0:02:56.9]} 10... O-O {[%clk 0:02:28.3]} 11.
Bxd6 {[%clk 0:02:56]} 11... Qxd6 {[%clk 0:02:29.2]} 12. c4 {[%clk 0:02:55.7]}
12... Bg4 {[%clk 0:02:22.7]} 13. c5 {[%clk 0:02:53]} 13... Qf4 {[%clk
0:02:17.7]} 14. Qd2 {[%clk 0:02:50.9]} 14... Qf5 {[%clk 0:02:03.3]} 15. Nc3
{[%clk 0:02:44.5]} 15... Rfe8 {[%clk 0:01:58.3]} 16. Nb5 {[%clk 0:02:37.1]}
16... Ne4 {[%clk 0:01:53.3]} 17. Qb2 {[%clk 0:02:27.5]} 17... Re7 {[%clk
0:01:51.9]} 18. Rfe1 {[%clk 0:01:24.8]} 18... Rae8 {[%clk 0:01:49.1]} 19. Nxa7
{[%clk 0:01:07.5]} 19... Ng5 {[%clk 0:01:39.9]} 20. Nxc6 {[%clk 0:00:59.9]}
20... bxc6 {[%clk 0:01:24.3]} 21. Nxg5 {[%clk 0:00:54.3]} 21... Bxe2 {[%clk
0:01:24]} 22. h4 {[%clk 0:00:43.4]} 22... h6 {[%clk 0:01:22.8]} 23. Nh3 {[%clk
0:00:41.6]} 23... Bg4 {[%clk 0:01:22.3]} 24. Rxe7 {[%clk 0:00:22.7]} 24... Rxe7
{[%clk 0:01:23.2]} 25. Qc3 {[%clk 0:00:21.7]} 25... Re2 {[%clk 0:01:18.8]} 26.
Qg3 {[%clk 0:00:18.7]} 26... g6 {[%clk 0:01:11.6]} 27. Nf4 {[%clk 0:00:18.7]}
27... Re4 {[%clk 0:01:07.6]} 28. Nd3 {[%clk 0:00:15.6]} 28... Rxd4 {[%clk
0:01:06.1]} 29. Ne5 {[%clk 0:00:16.1]} 29... h5 {[%clk 0:00:36.8]} 30. Nxc6
{[%clk 0:00:15.3]} 30... Qf6 {[%clk 0:00:35]} 31. Nxd4 {[%clk 0:00:14.1]} 31...
Qxd4 {[%clk 0:00:34.6]} 32. Rc1 {[%clk 0:00:14.4]} 32... Qd2 {[%clk 0:00:33.2]}
33. Qe3 {[%clk 0:00:13.1]} 33... Qa5 {[%clk 0:00:21.8]} 34. c6 {[%clk 0:00:13]}
34... Qc7 {[%clk 0:00:21.9]} 35. b4 {[%clk 0:00:12.5]} 35... Kh7 {[%clk
0:00:10.9]} 36. b5 {[%clk 0:00:12.6]} 1-0

[Event "Late-Titled-Tuesday-Blitz-March-12-2024"]
[Site "Chess.com"]
[Date "2024.03.12"]
[Round "11"]
[White "TokChess"]
[Black "chess_blitz00"]
[Result "1-0"]
[WhiteElo "2616"]
[BlackElo "2472"]
[TimeControl "180+1"]
[EndTime "16:04:09 PDT"]
[Termination "TokChess won by resignation"]

1. c4 {[%clk 0:03:00.9]} 1... d6 {[%clk 0:03:00.9]} 2. g3 {[%clk 0:03:01.1]}
2... e5 {[%clk 0:02:59.5]} 3. Bg2 {[%clk 0:03:01.5]} 3... g6 {[%clk 0:03:00]} 4.
Nc3 {[%clk 0:03:02.1]} 4... Bg7 {[%clk 0:03:00.8]} 5. b4 {[%clk 0:03:02.4]} 5...
Ne7 {[%clk 0:03:00.1]} 6. b5 {[%clk 0:03:01.2]} 6... O-O {[%clk 0:03:00.5]} 7.
Qc2 {[%clk 0:02:59.2]} 7... c6 {[%clk 0:03:00.7]} 8. bxc6 {[%clk 0:02:56]} 8...
Nbxc6 {[%clk 0:03:00.8]} 9. Nf3 {[%clk 0:02:52]} 9... Bf5 {[%clk 0:02:59.5]} 10.
d3 {[%clk 0:02:50.3]} 10... Nd4 {[%clk 0:02:54.8]} 11. Nxd4 {[%clk 0:02:48.8]}
11... exd4 {[%clk 0:02:55.7]} 12. Ne4 {[%clk 0:02:40.5]} 12... d5 {[%clk
0:02:55.2]} 13. cxd5 {[%clk 0:02:41.4]} 13... Nxd5 {[%clk 0:02:55.2]} 14. O-O
{[%clk 0:02:39]} 14... Rc8 {[%clk 0:02:45.3]} 15. Qb3 {[%clk 0:02:38.8]} 15...
Qd7 {[%clk 0:02:37.2]} 16. Ba3 {[%clk 0:02:34.6]} 16... Rfd8 {[%clk 0:02:29.3]}
17. Nd6 {[%clk 0:02:30.2]} 17... Rc3 {[%clk 0:02:29.2]} 18. Qxd5 {[%clk
0:02:17.5]} 18... Rxa3 {[%clk 0:02:28.8]} 19. Nxf5 {[%clk 0:02:17.7]} 19... Qxd5
{[%clk 0:02:27.1]} 20. Ne7+ {[%clk 0:02:17.3]} 20... Kf8 {[%clk 0:02:21.8]} 21.
Nxd5 {[%clk 0:02:18.2]} 21... Ra5 {[%clk 0:02:16.5]} 22. Nb4 {[%clk 0:02:06.4]}
22... Rd6 {[%clk 0:02:11.9]} 23. Rfc1 {[%clk 0:01:56.2]} 23... Bh6 {[%clk
0:02:06.2]} 24. f4 {[%clk 0:01:50.6]} 24... g5 {[%clk 0:02:03.5]} 25. Rc8+
{[%clk 0:01:45.9]} 25... Kg7 {[%clk 0:02:03.7]} 26. fxg5 {[%clk 0:01:09.4]}
26... Bxg5 {[%clk 0:02:04.6]} 27. Bf3 {[%clk 0:00:58.6]} 27... Rb6 {[%clk
0:01:54.7]} 28. Nd5 {[%clk 0:00:51.2]} 28... Rb2 {[%clk 0:01:54.5]} 29. a4
{[%clk 0:00:45.9]} 29... b5 {[%clk 0:01:46.6]} 30. Rb8 {[%clk 0:00:41.1]} 30...
a6 {[%clk 0:01:33.7]} 31. h4 {[%clk 0:00:39.8]} 31... Bd2 {[%clk 0:01:31.3]} 32.
Rb7 {[%clk 0:00:38.4]} 32... Bc3 {[%clk 0:01:25.9]} 33. Rc1 {[%clk 0:00:31.3]}
33... bxa4 {[%clk 0:01:00.1]} 34. Nxc3 {[%clk 0:00:25.8]} 34... dxc3 {[%clk
0:00:50.2]} 35. Rxc3 {[%clk 0:00:25.4]} 35... Rxb7 {[%clk 0:00:47.8]} 36. Bxb7
{[%clk 0:00:26.3]} 36... a3 {[%clk 0:00:47.9]} 37. Rc1 {[%clk 0:00:24.2]} 37...
Rb5 {[%clk 0:00:17.8]} 38. Bxa6 {[%clk 0:00:17.5]} 38... Rb2 {[%clk 0:00:16.3]}
39. Ra1 {[%clk 0:00:15.8]} 39... a2 {[%clk 0:00:15.2]} 40. Kf2 {[%clk
0:00:15.4]} 40... h5 {[%clk 0:00:13.1]} 41. Bc4 {[%clk 0:00:15.3]} 41... Rb1
{[%clk 0:00:14]} 42. Rxa2 {[%clk 0:00:14.8]} 42... Rb6 {[%clk 0:00:14.9]} 43.
Ra6 {[%clk 0:00:14.1]} 43... Rb8 {[%clk 0:00:15.2]} 44. Ra7 {[%clk 0:00:13.7]}
44... Rf8 {[%clk 0:00:14.6]} 45. Kf3 {[%clk 0:00:14]} 45... Kf6 {[%clk
0:00:14.7]} 46. Rxf7+ {[%clk 0:00:13.9]} 46... Rxf7 {[%clk 0:00:14.9]} 47. Bxf7
{[%clk 0:00:14.8]} 47... Kxf7 {[%clk 0:00:15.4]} 48. Kf4 {[%clk 0:00:15.6]} 1-0

[Event "Late-Titled-Tuesday-Blitz-March-12-2024"]
[Site "Chess.com"]
[Date "2024.03.12"]
[Round "11"]
[White "rasmussvane"]
[Black "Blitzstream"]
[Result "1-0"]
[WhiteElo "2949"]
[BlackElo "2761"]
[TimeControl "180+1"]
[EndTime "16:04:12 PDT"]
[Termination "rasmussvane won by resignation"]

1. Nf3 {[%clk 0:03:00.9]} 1... c5 {[%clk 0:03:00]} 2. c4 {[%clk 0:02:59.6]} 2...
Nc6 {[%clk 0:03:00.3]} 3. Nc3 {[%clk 0:02:56.7]} 3... Nf6 {[%clk 0:03:00.5]} 4.
e3 {[%clk 0:02:56.9]} 4... d5 {[%clk 0:02:56.1]} 5. cxd5 {[%clk 0:02:56.1]} 5...
Nxd5 {[%clk 0:02:57]} 6. Bb5 {[%clk 0:02:55.7]} 6... g6 {[%clk 0:02:42.3]} 7.
Qa4 {[%clk 0:02:46]} 7... Nxc3 {[%clk 0:02:30.1]} 8. bxc3 {[%clk 0:02:44.1]}
8... Bd7 {[%clk 0:02:22.5]} 9. Qb3 {[%clk 0:02:29.7]} 9... Bg7 {[%clk
0:02:17.9]} 10. O-O {[%clk 0:01:55]} 10... O-O {[%clk 0:02:16.8]} 11. Ba3 {[%clk
0:01:54.4]} 11... b6 {[%clk 0:02:10.7]} 12. d4 {[%clk 0:01:54.6]} 12... Qc7
{[%clk 0:01:48.4]} 13. Rfd1 {[%clk 0:01:54.2]} 13... e6 {[%clk 0:01:33.5]} 14.
dxc5 {[%clk 0:01:44.5]} 14... Rab8 {[%clk 0:01:25.6]} 15. cxb6 {[%clk
0:01:31.3]} 15... Rxb6 {[%clk 0:01:25.2]} 16. Bxf8 {[%clk 0:01:31.2]} 16... Bxf8
{[%clk 0:01:21.5]} 17. Qc4 {[%clk 0:01:18.5]} 17... Be8 {[%clk 0:01:20.6]} 18.
Nd4 {[%clk 0:01:10.4]} 18... e5 {[%clk 0:01:16.9]} 19. Nxc6 {[%clk 0:01:09.1]}
19... Bxc6 {[%clk 0:01:17.8]} 20. Bxc6 {[%clk 0:01:09]} 20... Rxc6 {[%clk
0:01:18.1]} 21. Qf1 {[%clk 0:01:02.4]} 21... e4 {[%clk 0:01:08.4]} 22. Rd4
{[%clk 0:00:59.1]} 22... Qe5 {[%clk 0:01:00.1]} 23. c4 {[%clk 0:00:55]} 23... h5
{[%clk 0:00:57.1]} 24. Rb1 {[%clk 0:00:52.2]} 24... a6 {[%clk 0:00:54.4]} 25. g3
{[%clk 0:00:51.4]} 25... Rf6 {[%clk 0:00:44.4]} 26. Qg2 {[%clk 0:00:37.7]} 26...
Rf3 {[%clk 0:00:44.1]} 27. Rbd1 {[%clk 0:00:30.4]} 27... Bb4 {[%clk 0:00:31.3]}
28. Qh3 {[%clk 0:00:25.6]} 28... Kg7 {[%clk 0:00:26.6]} 29. Qd7 {[%clk
0:00:20.4]} 29... Qf6 {[%clk 0:00:17.2]} 30. Rf1 {[%clk 0:00:20.7]} 30... h4
{[%clk 0:00:12.1]} 31. Qg4 {[%clk 0:00:19.5]} 31... hxg3 {[%clk 0:00:09.6]} 32.
hxg3 {[%clk 0:00:19.6]} 32... Bc5 {[%clk 0:00:09.1]} 33. Qxe4 {[%clk 0:00:12.6]}
33... Bxd4 {[%clk 0:00:05.1]} 34. exd4 {[%clk 0:00:12.8]} 34... Ra3 {[%clk
0:00:03.7]} 35. c5 {[%clk 0:00:11.6]} 35... Rxa2 {[%clk 0:00:02.8]} 36. d5
{[%clk 0:00:12]} 36... Rd2 {[%clk 0:00:01.7]} 37. c6 {[%clk 0:00:08.5]} 37...
Qd6 {[%clk 0:00:01.7]} 38. Rc1 {[%clk 0:00:06.7]} 38... Rxd5 {[%clk 0:00:01.8]}
39. c7 {[%clk 0:00:06.6]} 39... Rd1+ {[%clk 0:00:02.3]} 40. Rxd1 {[%clk
0:00:07.1]} 40... Qxd1+ {[%clk 0:00:02.9]} 41. Kg2 {[%clk 0:00:07.8]} 41... Qd7
{[%clk 0:00:02.7]} 42. Qb7 {[%clk 0:00:07.9]} 1-0

[Event "Late-Titled-Tuesday-Blitz-March-12-2024"]
[Site "Chess.com"]
[Date "2024.03.12"]
[Round "11"]
[White "jefferyx"]
[Black "BogdanDeac"]
[Result "1-0"]
[WhiteElo "3105"]
[BlackElo "3098"]
[TimeControl "180+1"]
[EndTime "16:04:23 PDT"]
[Termination "jefferyx won by resignation"]

1. d4 {[%clk 0:03:00.9]} 1... Nf6 {[%clk 0:03:00.1]} 2. c4 {[%clk 0:03:00.8]}
2... e6 {[%clk 0:03:00.7]} 3. Nc3 {[%clk 0:03:01.1]} 3... Bb4 {[%clk 0:03:00.5]}
4. Nf3 {[%clk 0:03:01.2]} 4... d5 {[%clk 0:03:00.6]} 5. Qa4+ {[%clk 0:02:59.9]}
5... Nc6 {[%clk 0:03:00.7]} 6. e3 {[%clk 0:03:00.4]} 6... O-O {[%clk 0:03:01.3]}
7. Bd2 {[%clk 0:02:56.4]} 7... dxc4 {[%clk 0:02:55.5]} 8. Bxc4 {[%clk
0:02:55.5]} 8... Bd6 {[%clk 0:02:56.2]} 9. Qc2 {[%clk 0:02:54]} 9... e5 {[%clk
0:02:52.7]} 10. dxe5 {[%clk 0:02:54.9]} 10... Nxe5 {[%clk 0:02:53.1]} 11. Nxe5
{[%clk 0:02:54.1]} 11... Bxe5 {[%clk 0:02:54]} 12. f4 {[%clk 0:02:54]} 12...
Bxc3 {[%clk 0:02:47.7]} 13. Bxc3 {[%clk 0:02:54.9]} 13... Ng4 {[%clk 0:02:09.2]}
14. Bd4 {[%clk 0:02:54.7]} 14... c5 {[%clk 0:02:04.2]} 15. Bxc5 {[%clk 0:02:55]}
15... Re8 {[%clk 0:02:04.5]} 16. O-O {[%clk 0:02:55.5]} 16... Nxe3 {[%clk
0:01:43.6]} 17. Bxe3 {[%clk 0:02:56.4]} 17... Rxe3 {[%clk 0:01:43.2]} 18. Qf2
{[%clk 0:02:40.1]} 18... Qb6 {[%clk 0:01:39.3]} 19. a4 {[%clk 0:02:40]} 19...
Re4 {[%clk 0:01:26.7]} 20. Qxb6 {[%clk 0:02:37]} 20... axb6 {[%clk 0:01:27.6]}
21. Rfe1 {[%clk 0:02:37.4]} 21... Rxe1+ {[%clk 0:01:09.7]} 22. Rxe1 {[%clk
0:02:38.3]} 22... Kf8 {[%clk 0:01:09.2]} 23. b3 {[%clk 0:02:36]} 23... Bd7
{[%clk 0:01:06.7]} 24. Kf2 {[%clk 0:02:27.5]} 24... Rc8 {[%clk 0:00:58.7]} 25.
Re4 {[%clk 0:02:12.4]} 25... Rc5 {[%clk 0:00:23]} 26. Rd4 {[%clk 0:02:12.1]}
26... Ke7 {[%clk 0:00:13.8]} 27. Bxf7 {[%clk 0:02:07.6]} 27... Bxa4 {[%clk
0:00:06.7]} 28. bxa4 {[%clk 0:01:58.4]} 28... Kxf7 {[%clk 0:00:06.2]} 29. Rb4
{[%clk 0:01:58.9]} 29... Ra5 {[%clk 0:00:04.7]} 30. g4 {[%clk 0:01:49.2]} 30...
h6 {[%clk 0:00:04.9]} 31. h4 {[%clk 0:01:47.8]} 31... Kf8 {[%clk 0:00:04.9]} 32.
h5 {[%clk 0:01:42.6]} 32... Rc5 {[%clk 0:00:04.6]} 33. Kf3 {[%clk 0:01:37.5]}
33... Rc6 {[%clk 0:00:04.4]} 34. g5 {[%clk 0:01:29.9]} 34... hxg5 {[%clk
0:00:03.5]} 35. fxg5 {[%clk 0:01:30.8]} 35... Rc5 {[%clk 0:00:03.6]} 36. Kg4
{[%clk 0:01:29.2]} 36... Rc6 {[%clk 0:00:03.9]} 37. Rd4 {[%clk 0:01:08.7]} 37...
Ke7 {[%clk 0:00:03.6]} 38. Kf5 {[%clk 0:01:08.3]} 38... g6+ {[%clk 0:00:02.7]}
39. hxg6 {[%clk 0:01:06.6]} 39... Kf8 {[%clk 0:00:03.2]} 40. Rd8+ {[%clk
0:00:30.3]} 40... Kg7 {[%clk 0:00:03.4]} 41. Rd7+ {[%clk 0:00:31]} 41... Kg8
{[%clk 0:00:04.1]} 42. g7 {[%clk 0:00:31.7]} 42... b5 {[%clk 0:00:03.4]} 43.
axb5 {[%clk 0:00:27.9]} 43... Rb6 {[%clk 0:00:03.8]} 44. Rd5 {[%clk 0:00:20.3]}
44... Kxg7 {[%clk 0:00:04.2]} 45. Ke5 {[%clk 0:00:15.3]} 45... Kg6 {[%clk
0:00:03.3]} 46. Kd4 {[%clk 0:00:15.7]} 46... Re6 {[%clk 0:00:03.5]} 47. Re5
{[%clk 0:00:13.8]} 47... Rd6+ {[%clk 0:00:01.8]} 48. Kc5 {[%clk 0:00:14.2]}
48... Rd7 {[%clk 0:00:02.4]} 49. Kb6 {[%clk 0:00:14.7]} 49... Kh5 {[%clk
0:00:02.8]} 50. Ka7 {[%clk 0:00:15.1]} 1-0

[Event "Late-Titled-Tuesday-Blitz-March-12-2024"]
[Site "Chess.com"]
[Date "2024.03.12"]
[Round "11"]
[White "Oleksandr_Bortnyk"]
[Black "Bauman_Guy"]
[Result "1-0"]
[WhiteElo "3020"]
[BlackElo "2932"]
[TimeControl "180+1"]
[EndTime "16:04:26 PDT"]
[Termination "Oleksandr_Bortnyk won by checkmate"]

1. e4 {[%clk 0:02:25.1]} 1... c5 {[%clk 0:02:53.5]} 2. c3 {[%clk 0:02:22.1]}
2... d5 {[%clk 0:02:52.4]} 3. exd5 {[%clk 0:02:22]} 3... Qxd5 {[%clk 0:02:53.3]}
4. d4 {[%clk 0:02:22.5]} 4... e6 {[%clk 0:02:53.5]} 5. Be3 {[%clk 0:02:21.8]}
5... cxd4 {[%clk 0:02:51.8]} 6. cxd4 {[%clk 0:02:22.7]} 6... Bb4+ {[%clk
0:02:51.9]} 7. Nc3 {[%clk 0:02:22.5]} 7... Bd7 {[%clk 0:02:51.9]} 8. Nf3 {[%clk
0:02:19.9]} 8... Nf6 {[%clk 0:02:51.2]} 9. Bd3 {[%clk 0:02:18.9]} 9... Bb5
{[%clk 0:02:48.7]} 10. O-O {[%clk 0:02:18.9]} 10... Bxc3 {[%clk 0:02:48.9]} 11.
bxc3 {[%clk 0:02:19.1]} 11... Nbd7 {[%clk 0:02:49.5]} 12. Rb1 {[%clk 0:02:19.1]}
12... Bxd3 {[%clk 0:02:49.3]} 13. Qxd3 {[%clk 0:02:20]} 13... O-O {[%clk
0:02:49.2]} 14. c4 {[%clk 0:02:14.7]} 14... Qc6 {[%clk 0:02:49.4]} 15. Rfc1
{[%clk 0:02:12.7]} 15... Rac8 {[%clk 0:02:45]} 16. h3 {[%clk 0:02:11.9]} 16...
h6 {[%clk 0:02:44.8]} 17. Qa3 {[%clk 0:02:04.3]} 17... a6 {[%clk 0:02:39.7]} 18.
Bf4 {[%clk 0:01:40.2]} 18... Rfd8 {[%clk 0:02:32.3]} 19. Bd6 {[%clk 0:01:34.7]}
19... Ne4 {[%clk 0:02:27.7]} 20. Be7 {[%clk 0:01:32.6]} 20... Re8 {[%clk
0:02:26.2]} 21. d5 {[%clk 0:01:22.2]} 21... exd5 {[%clk 0:02:09.1]} 22. Nd4
{[%clk 0:01:21.1]} 22... Qg6 {[%clk 0:01:45.2]} 23. cxd5 {[%clk 0:01:18.4]}
23... Nc3 {[%clk 0:01:21.1]} 24. Rxb7 {[%clk 0:01:04.3]} 24... Qd3 {[%clk
0:01:19.8]} 25. Rb3 {[%clk 0:00:38.5]} 25... Qxd4 {[%clk 0:00:58.2]} 26. Rbxc3
{[%clk 0:00:36.2]} 26... Rxc3 {[%clk 0:00:54.4]} 27. Rxc3 {[%clk 0:00:32.4]}
27... Qd1+ {[%clk 0:00:44.8]} 28. Kh2 {[%clk 0:00:29.1]} 28... Qxd5 {[%clk
0:00:45.7]} 29. Re3 {[%clk 0:00:27]} 29... a5 {[%clk 0:00:31.8]} 30. f4 {[%clk
0:00:18.8]} 30... h5 {[%clk 0:00:28.3]} 31. Rd3 {[%clk 0:00:17.2]} 31... Qe6
{[%clk 0:00:23.1]} 32. Bh4 {[%clk 0:00:17.4]} 32... Qf5 {[%clk 0:00:19.3]} 33.
Qd6 {[%clk 0:00:14.7]} 33... Nf8 {[%clk 0:00:15.1]} 34. Rd5 {[%clk 0:00:14.5]}
34... Qe4 {[%clk 0:00:10.7]} 35. Rxh5 {[%clk 0:00:13.3]} 35... Ng6 {[%clk
0:00:10.8]} 36. Bg3 {[%clk 0:00:13]} 36... Qc2 {[%clk 0:00:10.4]} 37. f5 {[%clk
0:00:12.7]} 37... Nf8 {[%clk 0:00:11]} 38. f6 {[%clk 0:00:13.1]} 38... Re2
{[%clk 0:00:11.1]} 39. fxg7 {[%clk 0:00:11.1]} 39... Rxg2+ {[%clk 0:00:10.3]}
40. Kh1 {[%clk 0:00:11.8]} 40... Rh2+ {[%clk 0:00:05.8]} 41. Bxh2 {[%clk
0:00:11.5]} 41... Qe4+ {[%clk 0:00:06.1]} 42. Kg1 {[%clk 0:00:11.8]} 42... Qe1+
{[%clk 0:00:06.5]} 43. Kg2 {[%clk 0:00:12.6]} 43... Qe2+ {[%clk 0:00:06.9]} 44.
Kg3 {[%clk 0:00:13.4]} 44... Qe3+ {[%clk 0:00:07.3]} 45. Kg4 {[%clk 0:00:12.1]}
45... Ng6 {[%clk 0:00:05.6]} 46. Qb8+ {[%clk 0:00:10.2]} 46... Kxg7 {[%clk
0:00:05.7]} 47. Be5+ {[%clk 0:00:10.9]} 47... f6 {[%clk 0:00:04.5]} 48. Qc7+
{[%clk 0:00:11.6]} 48... Kf8 {[%clk 0:00:04.7]} 49. Bd6+ {[%clk 0:00:10.6]}
49... Kg8 {[%clk 0:00:04.2]} 50. Qh7# {[%clk 0:00:11.1]} 1-0